bitfinex/quotes_SOLUSD_20241208
["timestamp","ask_amount","ask_price","bid_price","bid_amount"]
[1733635659838,8.41949716,237.45,237.36,8.16851716]
[1733635660137,0.25098,237.45,237.38,8.16851716]
[1733635660317,8.41949716,237.45,237.33,0.4689515]
[1733635660515,8.41949716,237.45,237.37,8.16851716]
[1733635661316,0.25098,237.43,237.37,8.16851716]
[1733635661712,24.027864,237.45,237.38,8.16851716]
[1733635661917,0.25098,237.45,237.39,8.16851716]
[1733635662134,0.25098,237.45,237.4,8.16851716]
[1733635662427,8.16851716,237.48,237.41,8.16851716]
[1733635662619,0.25098,237.47,237.41,8.16851716]
[1733635663134,8.16851716,237.49,237.41,8.16851716]
[1733635663336,8.41949716,237.48,237.4,8.16851716]
[1733635663743,0.25098,237.48,237.41,8.16851716]
[1733635665133,0.25098,237.47,237.4,8.16851716]
[1733635665530,0.25098,237.47,237.36,10.5323]
[1733635665763,8.41949716,237.46,237.38,8.16851716]
[1733635666342,0.25098,237.44,237.33,0.4689515]
[1733635666648,0.25098,237.44,237.39,8.16851716]
[1733635666845,0.12549,237.44,237.39,8.16851716]
[1733635667019,23.776884,237.46,237.39,8.16851716]
[1733635667341,0.25098,237.45,237.39,8.16851716]
[1733635667728,0.25098,237.45,237.4,8.16851716]
[1733635667915,0.25098,237.45,237.39,8.16851716]
[1733635669124,0.25098,237.47,237.4,8.16851716]
[1733635669323,24.027864,237.47,237.4,8.16851716]
[1733635669652,32.19638116,237.47,237.39,8.16851716]
[1733635670644,32.19638116,237.47,237.35,20.0]
[1733635670945,32.19638116,237.47,237.38,8.16851716]
[1733635671326,32.19638116,237.47,237.39,8.16851716]
[1733635671527,0.25098,237.45,237.38,8.16851716]
[1733635671753,8.41949716,237.45,237.38,8.16851716]
[1733635672626,0.25098,237.45,237.38,8.16851716]
[1733635674541,0.25098,237.45,237.39,8.16851716]
[1733635676243,0.25098,237.45,237.35,20.0]
[1733635676554,0.25098,237.45,237.39,8.16851716]
[1733635678631,7.6169,237.52,237.42,8.16851716]
[1733635678831,7.6169,237.52,237.35,20.0]
[1733635678832,8.16851716,237.48,237.41,8.16851716]
[1733635679025,0.12549,237.47,237.41,8.16851716]
[1733635679252,0.12549,237.47,237.4,8.16851716]
[1733635679554,0.25098,237.47,237.4,8.16851716]
[1733635680456,24.027864,237.47,237.34,30.5334]
[1733635680632,0.25098,237.45,237.39,8.16851716]
[1733635683054,8.16851716,237.49,237.41,8.16851716]
[1733635683276,0.25098,237.5,237.43,8.16851716]
[1733635683855,0.12549,237.5,237.43,8.16851716]
[1733635685035,0.25098,237.48,237.41,8.16851716]
[1733635685756,0.12549,237.48,237.38,10.5314]
[1733635685946,0.12549,237.48,237.41,8.16851716]
[1733635686861,8.16851716,237.49,237.41,8.16851716]
[1733635687036,8.16851716,237.51,237.43,8.16851716]
[1733635687360,0.12549,237.5,237.43,8.16851716]
[1733635687740,0.25098,237.5,237.42,8.16851716]
[1733635688296,0.12549,237.5,237.44,8.16851716]
[1733635688635,0.25098,237.51,237.44,8.16851716]
[1733635689341,0.25098,237.51,237.41,20.0]
[1733635689548,0.25098,237.51,237.44,8.16851716]
[1733635689950,0.25098,237.51,237.41,20.0]
[1733635690152,0.25098,237.51,237.44,8.16851716]
[1733635690737,0.25098,237.51,237.41,20.0]
[1733635690937,0.25098,237.51,237.42,8.16851716]
[1733635693073,7.6169,237.52,237.44,8.16851716]
[1733635693638,0.12549,237.51,237.44,8.16851716]
[1733635694052,0.12549,237.51,237.42,10.5298]
[1733635694271,0.12549,237.51,237.44,8.16851716]
[1733635695555,7.6169,237.52,237.44,8.16851716]
[1733635695823,7.6169,237.52,237.42,10.5298]
[1733635695824,1.5845,237.52,237.48,8.16851716]
[1733635696066,8.16851716,237.56,237.48,8.16851716]
[1733635696272,0.25098,237.55,237.45,20.0]
[1733635696463,0.25098,237.55,237.48,8.16851716]
[1733635696649,8.16851716,237.56,237.45,20.0]
[1733635696974,8.16851716,237.56,237.5,8.16851716]
[1733635697354,6.5641,237.55,237.46,20.0]
[1733635697743,6.5641,237.55,237.47,8.16851716]
[1733635698940,1.5368,237.57,237.49,8.16851716]
[1733635699264,0.12549,237.56,237.49,8.16851716]
[1733635699468,0.12549,237.56,237.51,8.16851716]
[1733635699854,0.12549,237.56,237.46,20.0]
[1733635700068,0.12549,237.56,237.49,8.16851716]
[1733635700977,0.12549,237.56,237.51,8.16851716]
[1733635701269,8.16851716,237.55,237.47,10.5276]
[1733635701443,0.12549,237.54,237.46,28.16851716]
[1733635701942,0.12549,237.54,237.48,8.16851716]
[1733635702143,0.25098,237.56,237.48,8.16851716]
[1733635702336,0.12549,237.56,237.5,8.16851716]
[1733635703572,1.5368,237.57,237.5,8.16851716]
[1733635703872,1.5368,237.57,237.52,8.16851716]
[1733635704978,1.5368,237.57,237.53,8.16851716]
[1733635705143,6.5641,237.61,237.54,8.16851716]
[1733635705753,6.5641,237.61,237.55,8.16851716]
[1733635707068,6.5641,237.61,237.49,12.21263149]
[1733635707273,8.16851716,237.6,237.52,20.0]
[1733635707444,8.16851716,237.6,237.53,8.16851716]
[1733635709049,1.5368,237.63,237.57,8.16851716]
[1733635710546,1.5368,237.63,237.6,8.16851716]
[1733635710749,6.5641,237.66,237.61,8.16851716]
[1733635711881,1.6064,237.69,237.65,8.16851716]
[1733635712184,121.31954519,237.7,237.67,8.16851716]
[1733635712546,121.31954519,237.7,237.58,0.12549]
[1733635712743,121.31954519,237.7,237.65,8.16851716]
[1733635713876,129.48806235,237.7,237.63,28.16851716]
[1733635714072,129.48806235,237.7,237.63,20.0]
[1733635714590,129.48806235,237.7,237.6,10.5216]
[1733635714792,129.48806235,237.7,237.63,8.16851716]
[1733635715185,121.31954519,237.7,237.64,8.16851716]
[1733635717389,0.12549,237.69,237.6,10.5216]
[1733635717574,0.12549,237.69,237.57,1.65104232]
[1733635717575,0.12549,237.69,237.63,8.16851716]
[1733635718892,121.31954519,237.7,237.65,8.16851716]
[1733635719193,121.31954519,237.7,237.66,8.16851716]
[1733635720298,121.31954519,237.7,237.68,8.16851716]
[1733635720506,121.31954519,237.7,237.63,10.5201]
[1733635720806,121.31954519,237.7,237.65,8.16851716]
[1733635721098,121.31954519,237.7,237.67,8.16851716]
[1733635722599,121.31954519,237.7,237.66,8.16851716]
[1733635723109,121.31954519,237.7,237.63,10.5201]
[1733635723405,121.31954519,237.7,237.66,8.16851716]
[1733635723791,121.31954519,237.7,237.58,4.99990839]
[1733635724001,121.31954519,237.7,237.65,8.16851716]
[1733635724204,121.31954519,237.7,237.62,20.0]
[1733635724805,121.31954519,237.7,237.64,8.16851716]
[1733635725885,121.31954519,237.7,237.66,8.16851716]
[1733635727813,121.31954519,237.7,237.65,8.16851716]
[1733635728907,121.31954519,237.7,237.64,8.16851716]
[1733635729109,121.31954519,237.7,237.67,8.16851716]
[1733635729289,121.31954519,237.7,237.63,20.0]
[1733635729290,121.31954519,237.7,237.68,8.16851716]
[1733635729608,121.31954519,237.7,237.69,8.16851716]
[1733635729796,121.31954519,237.7,237.64,10.5201]
[1733635729998,121.31954519,237.7,237.67,8.16851716]
[1733635730398,121.31954519,237.7,237.68,8.16851716]
[1733635730716,121.31954519,237.7,237.69,8.16851716]
[1733635731887,121.31954519,237.7,237.64,10.5201]
[1733635732090,121.31954519,237.7,237.68,8.16851716]
[1733635734090,121.31954519,237.7,237.64,10.5201]
[1733635734405,121.31954519,237.7,237.68,8.16851716]
[1733635735589,121.31954519,237.7,237.67,8.16851716]
[1733635735787,121.31954519,237.7,237.66,8.16851716]
[1733635735989,121.31954519,237.7,237.68,8.16851716]
[1733635736213,121.31954519,237.7,237.64,10.5201]
[1733635736516,121.31954519,237.7,237.68,8.16851716]
[1733635736922,121.31954519,237.7,237.63,20.0]
[1733635737134,8.16851716,237.69,237.62,8.16851716]
[1733635737420,8.16851716,237.66,237.58,8.16851716]
[1733635738029,1.5844,237.65,237.58,8.16851716]
[1733635738332,8.29400716,237.64,237.52,10.5252]
[1733635738487,8.29400716,237.64,237.56,8.16851716]
[1733635738687,0.12549,237.64,237.57,8.16851716]
[1733635738889,0.12549,237.64,237.51,1.71604741]
[1733635738890,1.5844,237.65,237.59,8.16851716]
[1733635739090,1.5844,237.65,237.6,8.16851716]
[1733635739929,1.5844,237.65,237.61,8.16851716]
[1733635740089,6.0639,237.69,237.64,8.16851716]
[1733635740295,121.31954519,237.7,237.66,8.16851716]
[1733635740501,121.31954519,237.7,237.67,8.16851716]
[1733635740910,121.31954519,237.7,237.69,8.16851716]
[1733635744535,121.31954519,237.7,237.67,10.5185]
[1733635744536,121.31954519,237.7,237.68,8.16851716]
[1733635745022,121.31954519,237.7,237.66,8.16851716]
[1733635745724,122.90394519,237.7,237.59,15.29845893]
[1733635745931,122.90394519,237.7,237.63,8.16851716]
[1733635745932,131.07246235,237.7,237.63,8.16851716]
[1733635746234,122.90394519,237.7,237.64,8.16851716]
[1733635747399,121.31954519,237.7,237.69,8.16851716]
[1733635748496,121.31954519,237.7,237.65,28.16851716]
[1733635748918,121.31954519,237.7,237.66,8.16851716]
[1733635749106,121.31954519,237.7,237.67,8.16851716]
[1733635749307,121.31954519,237.7,237.69,8.16851716]
[1733635754519,121.31954519,237.7,237.69,32.07089116]
[1733635757247,114.87332821,237.7,237.69,37.32184334]
[1733635757421,110.21262821,237.7,237.69,37.19635334]
[1733635757823,107.45482821,237.7,237.69,37.19635334]
[1733635758127,101.93922821,237.7,237.69,37.19635334]
[1733635758323,99.18142821,237.7,237.69,37.19635334]
[1733635758524,96.55412821,237.7,237.69,37.19635334]
[1733635758750,93.15192821,237.7,237.69,37.19635334]
[1733635759056,89.74972821,237.7,237.69,37.19635334]
[1733635759262,86.34752821,237.7,237.69,37.19635334]
[1733635759428,82.95852821,237.7,237.69,37.19635334]
[1733635759752,79.56952821,237.7,237.69,36.40038116]
[1733635760321,78.40948011,237.7,237.69,36.40038116]
[1733635760546,78.40948011,237.7,237.69,32.19638116]
[1733635760720,70.94608011,237.7,237.69,69.87042198]
[1733635760925,58.64198011,237.7,237.69,37.19635334]
[1733635761147,54.83418011,237.7,237.69,38.95511772]
[1733635761458,1.5581,237.81,237.74,23.776884]
[1733635761625,1.5581,237.81,237.78,8.16851716]
[1733635761952,6.1564,237.86,237.74,23.776884]
[1733635761953,7.7871,237.86,237.8,8.16851716]
[1733635762523,8.16851716,237.81,237.7,10.5174]
[1733635762726,8.16851716,237.79,237.72,8.16851716]
[1733635764360,8.16851716,237.81,237.72,8.16851716]
[1733635765859,0.12549,237.8,237.72,8.16851716]
[1733635767031,0.12549,237.8,237.74,8.16851716]
[1733635767240,0.12549,237.8,237.72,8.16851716]
[1733635768154,24.027864,237.85,237.62,8.16851716]
[1733635768155,0.12549,237.72,237.62,8.16851716]
[1733635768366,8.16851716,237.71,237.62,8.16851716]
[1733635768668,0.12549,237.72,237.57,1.63348066]
[1733635768669,8.16851716,237.74,237.66,8.16851716]
[1733635769237,0.12549,237.73,237.66,8.16851716]
[1733635770361,0.12549,237.71,237.56,1.7088257]
[1733635770670,8.16851716,237.7,237.63,8.16851716]
[1733635771860,8.16851716,237.7,237.56,15.52330839]
[1733635772068,8.16851716,237.7,237.62,8.16851716]
[1733635772376,0.12549,237.74,237.64,8.16851716]
[1733635772544,8.16851716,237.72,237.64,8.16851716]
[1733635772749,8.29400716,237.74,237.66,8.16851716]
[1733635773059,8.16851716,237.74,237.66,8.16851716]
[1733635773251,7.7871,237.75,237.66,8.16851716]
[1733635773478,7.7871,237.75,237.7,8.16851716]
[1733635775678,7.7871,237.75,237.69,8.16851716]
[1733635777574,7.7871,237.75,237.7,4.204]
[1733635777946,7.7871,237.75,237.7,12.37251716]
[1733635778671,7.7871,237.75,237.69,8.16851716]
[1733635778877,7.7871,237.75,237.68,20.0]
[1733635779171,7.7871,237.75,237.61,10.5214]
[1733635779172,8.16851716,237.73,237.61,10.5214]
[1733635779353,8.16851716,237.71,237.64,8.16851716]
[1733635779754,8.16851716,237.7,237.61,8.16851716]
[1733635779956,0.25098,237.74,237.61,8.16851716]
[1733635779957,8.16851716,237.69,237.61,8.16851716]
[1733635780280,24.027864,237.74,237.55,11.55188057]
[1733635780281,8.16851716,237.71,237.64,8.16851716]
[1733635780451,8.16851716,237.71,237.63,8.16851716]
[1733635782146,8.16851716,237.71,237.64,8.16851716]
[1733635782659,0.12549,237.71,237.64,8.16851716]
[1733635783360,7.7871,237.75,237.66,8.16851716]
[1733635783562,15.95561716,237.75,237.68,8.16851716]
[1733635784655,7.7871,237.75,237.68,8.16851716]
[1733635785049,7.7871,237.75,237.7,8.16851716]
[1733635785969,7.7871,237.75,237.69,8.16851716]
[1733635786168,7.7871,237.75,237.63,12.1575465]
[1733635786390,1.6307,237.75,237.7,8.16851716]
[1733635786558,1.6307,237.75,237.73,8.16851716]
[1733635787645,16.13961716,237.81,237.73,8.16851716]
[1733635788277,16.13961716,237.81,237.74,8.16851716]
[1733635789157,7.9711,237.81,237.74,8.16851716]
[1733635789357,7.9711,237.81,237.75,8.16851716]
[1733635791791,7.9711,237.81,237.74,28.16851716]
[1733635792173,7.9711,237.81,237.74,8.16851716]
[1733635792486,7.9711,237.81,237.75,8.16851716]
[1733635795590,7.9711,237.81,237.73,8.16851716]
[1733635795768,8.16851716,237.79,237.71,18.68521716]
[1733635795967,8.16851716,237.79,237.71,10.5167]
[1733635796185,7.9711,237.81,237.71,18.68521716]
[1733635796386,8.16851716,237.79,237.71,18.68521716]
[1733635796571,8.16851716,237.79,237.71,10.5167]
[1733635796892,0.25098,237.78,237.65,20.0]
[1733635797068,0.12549,237.78,237.7,8.16851716]
[1733635800201,0.12549,237.76,237.66,10.5188]
[1733635800361,8.16851716,237.73,237.64,8.16851716]
[1733635800565,1.5637,237.72,237.64,8.16851716]
[1733635800785,1.5637,237.72,237.62,10.5207]
[1733635800786,7.6498,237.72,237.66,8.16851716]
[1733635803078,0.12549,237.71,237.62,16.40448832]
[1733635803283,0.12549,237.71,237.65,8.16851716]
[1733635803483,0.12549,237.71,237.64,8.16851716]
[1733635804303,0.12549,237.71,237.65,8.16851716]
[1733635804782,0.12549,237.71,237.64,8.16851716]
[1733635805189,8.16851716,237.7,237.61,20.0]
[1733635805400,0.12549,237.69,237.63,8.16851716]
[1733635806278,8.41949716,237.71,237.61,20.0]
[1733635806479,8.41949716,237.71,237.63,8.16851716]
[1733635807195,8.41949716,237.71,237.66,8.16851716]
[1733635807196,0.12549,237.71,237.66,8.16851716]
[1733635808485,0.12549,237.71,237.61,30.5212]
[1733635808486,7.6498,237.72,237.67,8.16851716]
[1733635810087,7.6498,237.72,237.69,8.16851716]
[1733635810290,1.5637,237.72,237.7,8.16851716]
[1733635811294,7.6438,237.78,237.71,8.16851716]
[1733635811507,7.6438,237.78,237.72,8.16851716]
[1733635811871,7.6438,237.78,237.74,8.16851716]
[1733635812313,1.5577,237.78,237.74,8.16851716]
[1733635813205,1.5577,237.78,237.75,7.66851716]
[1733635813525,1.5577,237.78,237.74,8.16851716]
[1733635813691,1.5577,237.78,237.73,8.16851716]
[1733635814209,1.5577,237.78,237.74,8.16851716]
[1733635814381,15.80721716,237.84,237.77,8.16851716]
[1733635814578,8.16851716,237.83,237.75,8.16851716]
[1733635814819,8.16851716,237.82,237.75,8.16851716]
[1733635815176,8.16851716,237.81,237.74,8.16851716]
[1733635815381,0.12549,237.8,237.74,8.16851716]
[1733635815604,8.29400716,237.8,237.72,8.16851716]
[1733635815927,8.29400716,237.8,237.72,28.16851716]
[1733635816477,8.16851716,237.79,237.72,28.16851716]
[1733635816680,8.16851716,237.8,237.72,28.16851716]
[1733635816874,8.16851716,237.8,237.72,20.0]
[1733635817109,8.16851716,237.8,237.73,8.16851716]
[1733635817286,0.12549,237.8,237.73,8.16851716]
[1733635817810,0.12549,237.82,237.76,8.16851716]
[1733635817986,8.29400716,237.82,237.75,8.16851716]
[1733635818690,8.29400716,237.82,237.72,30.5163]
[1733635818691,8.29400716,237.82,237.74,8.16851716]
[1733635818891,8.29400716,237.8,237.73,8.16851716]
[1733635819212,8.16851716,237.79,237.72,8.16851716]
[1733635820208,8.16851716,237.8,237.73,8.16851716]
[1733635820585,0.12549,237.79,237.73,8.16851716]
[1733635822603,8.29400716,237.78,237.68,10.5181]
[1733635822792,8.16851716,237.75,237.68,8.16851716]
[1733635823023,9.78141716,237.74,237.64,10.5198]
[1733635823320,9.78141716,237.74,237.67,8.16851716]
[1733635823486,8.16851716,237.73,237.66,8.16851716]
[1733635823696,1.6129,237.74,237.64,18.68831716]
[1733635823697,8.16851716,237.72,237.64,18.68831716]
[1733635823905,8.16851716,237.72,237.64,8.16851716]
[1733635824689,17.00180409,237.89,237.65,0.12549]
[1733635824889,1.6129,237.9,237.64,9.99988057]
[1733635824890,8.16851716,237.85,237.77,8.16851716]
[1733635825088,8.16851716,237.87,237.79,8.16851716]
[1733635825322,8.16851716,237.89,237.81,8.16851716]
[1733635825617,0.12549,237.88,237.81,8.16851716]
[1733635826231,8.16851716,237.87,237.81,8.16851716]
[1733635826390,0.12549,237.86,237.79,8.16851716]
[1733635826586,12.85857183,237.86,237.78,12.73308183]
[1733635827692,0.12549,237.83,237.78,12.73308183]
[1733635827893,0.12549,237.83,237.76,12.73308183]
[1733635828598,0.25098,237.85,237.78,12.73308183]
[1733635831622,0.12549,237.85,237.78,12.73308183]
[1733635831793,14.34598183,237.9,237.82,12.73308183]
[1733635831992,14.34598183,237.9,237.77,20.0]
[1733635832193,0.25098,237.89,237.82,12.73308183]
[1733635832596,12.98406183,237.89,237.81,12.73308183]
[1733635835126,12.98406183,237.89,237.82,12.73308183]
[1733635835492,1.6129,237.9,237.83,12.73308183]
[1733635835715,1.6129,237.9,237.85,12.73308183]
[1733635835927,1.6129,237.9,237.86,12.73308183]
[1733635837428,1.6129,237.9,237.81,10.5121]
[1733635837429,1.6129,237.9,237.84,12.73308183]
[1733635837627,14.34598183,237.9,237.83,12.73308183]
[1733635838228,1.6129,237.9,237.84,12.73308183]
[1733635838530,1.6129,237.9,237.85,12.73308183]
[1733635839823,1.6129,237.9,237.83,12.73308183]
[1733635840026,1.6129,237.9,237.84,12.73308183]
[1733635841220,1.6129,237.9,237.87,12.73308183]
[1733635841412,1.6129,237.9,237.86,12.73308183]
[1733635841604,1.6129,237.9,237.85,12.73308183]
[1733635842008,1.6129,237.9,237.84,12.73308183]
[1733635842407,0.12549,237.89,237.82,12.73308183]
[1733635842642,0.12549,237.89,237.75,1.637]
[1733635842643,12.73308183,237.88,237.81,12.73308183]
[1733635842926,0.12549,237.89,237.84,12.73308183]
[1733635843734,0.12549,237.89,237.83,12.73308183]
[1733635844640,0.12549,237.89,237.84,12.73308183]
[1733635847112,1.6129,237.9,237.78,0.25098]
[1733635847313,1.6129,237.9,237.84,12.73308183]
[1733635847947,1.6129,237.9,237.85,4.204]
[1733635848243,1.6129,237.9,237.84,12.73308183]
[1733635848538,1.6129,237.9,237.84,8.14506453]
[1733635850953,1.664,237.96,237.89,8.14506453]
[1733635851444,8.27055453,237.95,237.87,8.14506453]
[1733635851759,0.12549,237.95,237.87,8.14506453]
[1733635851964,8.27055453,237.95,237.87,8.14506453]
[1733635853055,0.12549,237.9,237.77,21.70949251]
[1733635853497,0.12549,237.9,237.83,8.14506453]
[1733635854456,0.25098,237.93,237.83,8.14506453]
[1733635854646,8.14506453,237.9,237.83,8.14506453]
[1733635856060,0.37647,237.94,237.84,8.14506453]
[1733635856259,0.12549,237.91,237.85,8.14506453]
[1733635856559,0.12549,237.91,237.86,8.14506453]
[1733635856750,32.17292853,237.93,237.86,8.14506453]
[1733635856948,8.39604453,237.93,237.85,8.14506453]
[1733635857151,23.776884,237.95,237.87,8.14506453]
[1733635857356,1.664,237.96,237.9,8.14506453]
[1733635857763,1.664,237.96,237.92,8.14506453]
[1733635858071,1.664,237.96,237.91,8.14506453]
[1733635858862,0.12549,237.95,237.9,8.14506453]
[1733635859033,0.12549,237.95,237.87,20.0]
[1733635859034,8.27055453,237.95,237.87,28.14506453]
[1733635859766,8.27055453,237.93,237.86,8.14506453]
[1733635860142,0.12549,237.92,237.86,8.14506453]
[1733635860665,0.12549,237.92,237.82,10.5117]
[1733635860858,0.12549,237.92,237.85,12.7246676]
[1733635861063,0.12549,237.94,237.86,12.7246676]
[1733635861064,12.9756476,237.94,237.86,12.7246676]
[1733635861771,1.664,237.96,237.88,12.7246676]
[1733635862068,1.664,237.96,237.9,12.7246676]
[1733635862366,0.12549,237.95,237.9,12.7246676]
[1733635862537,0.12549,237.95,237.91,12.7246676]
[1733635864478,1.664,237.96,237.91,12.7246676]
[1733635865569,1.664,237.96,237.93,12.7246676]
[1733635865783,1.6656,238.01,237.95,12.7246676]
[1733635867088,0.12549,238.0,237.95,12.7246676]
[1733635867578,36.8780216,238.0,237.92,12.7246676]
[1733635867751,0.12549,237.98,237.91,12.7246676]
[1733635868150,0.12549,237.98,237.92,12.7246676]
[1733635868778,36.7525316,238.0,237.88,10.5094]
[1733635868779,0.12549,237.99,237.88,10.5094]
[1733635869077,0.12549,237.99,237.93,12.7246676]
[1733635870366,1.6656,238.01,237.95,12.7246676]
[1733635870564,23.776884,238.0,237.95,12.7246676]
[1733635870990,1.6656,238.01,237.95,12.7246676]
[1733635871651,1.6656,238.01,237.85,30.22527218]
[1733635871652,6.565,238.04,238.0,12.7246676]
[1733635872179,6.565,238.04,237.98,12.7246676]
[1733635872750,36.6270416,238.03,237.95,12.7246676]
[1733635872955,23.902374,237.98,237.91,12.7246676]
[1733635873166,14.3021676,237.99,237.84,12.7246676]
[1733635873167,23.902374,237.96,237.89,12.7246676]
[1733635873498,23.902374,237.96,237.91,12.7246676]
[1733635874483,24.153354,237.98,237.91,12.7246676]
[1733635875461,23.902374,237.98,237.91,12.7246676]
[1733635876059,0.12549,237.98,237.95,12.7246676]
[1733635876260,1.5775,237.99,237.95,12.7246676]
[1733635877461,6.565,238.04,237.95,12.7246676]
[1733635877673,23.902374,238.03,237.95,12.7246676]
[1733635878271,23.902374,238.01,237.9,20.0]
[1733635878481,0.12549,237.99,237.92,12.7246676]
[1733635878681,23.902374,237.99,237.92,12.7246676]
[1733635879072,12.7246676,237.98,237.86,20.0]
[1733635879273,0.12549,237.97,237.92,12.7246676]
[1733635879586,0.12549,237.97,237.86,20.0]
[1733635879587,0.12549,237.97,237.93,12.7246676]
[1733635879796,23.776884,237.99,237.95,12.7246676]
[1733635880009,0.12549,237.98,237.95,12.7246676]
[1733635880293,0.12549,237.98,237.89,20.0]
[1733635880600,0.12549,237.98,237.87,20.0]
[1733635880601,0.12549,237.98,237.94,12.7246676]
[1733635880893,0.12549,237.99,237.89,20.0]
[1733635881200,0.12549,237.99,237.94,12.7246676]
[1733635882398,0.12549,237.99,237.93,12.7246676]
[1733635882583,0.12549,237.99,237.93,8.13928827]
[1733635886491,0.12549,237.99,237.95,8.13928827]
[1733635886699,8.13928827,238.03,237.97,8.13928827]
[1733635886890,23.776884,238.03,237.97,8.13928827]
[1733635887085,6.565,238.04,237.97,8.13928827]
[1733635887289,0.12549,238.03,237.97,8.13928827]
[1733635887489,6.565,238.04,237.99,8.13928827]
[1733635888473,0.12549,238.03,237.99,8.13928827]
[1733635889113,6.565,238.04,238.0,8.13928827]
[1733635889275,6.565,238.04,237.9,4.204]
[1733635889276,1.5693,238.05,238.01,8.13928827]
[1733635890585,1.5693,238.05,238.04,8.13928827]
[1733635891809,7.6876,238.1,238.04,8.13928827]
[1733635891990,6.1169,238.15,238.08,8.13928827]
[1733635892309,8.13928827,238.14,238.07,8.13928827]
[1733635892509,6.1169,238.15,238.06,8.13928827]
[1733635892693,18.13928827,238.13,238.06,8.13928827]
[1733635892882,10.0,238.13,238.07,8.13928827]
[1733635893282,10.0,238.13,238.08,8.13928827]
[1733635893484,10.0,238.13,237.99,1.5976]
[1733635893485,10.0,238.13,238.09,8.13928827]
[1733635894095,0.12549,238.12,238.09,8.13928827]
[1733635894405,10.0,238.13,238.09,8.13928827]
[1733635894918,10.0,238.13,238.07,8.13928827]
[1733635896621,10.0,238.13,238.02,4.204]
[1733635896622,10.0,238.13,238.08,8.13928827]
[1733635897427,10.0,238.13,238.09,8.13928827]
[1733635897797,10.0,238.13,238.11,8.13928827]
[1733635903312,10.0,238.13,238.09,8.13928827]
[1733635903825,10.0,238.13,238.08,8.13928827]
[1733635907948,10.0,238.13,238.09,8.13928827]
[1733635908562,10.0,238.13,238.1,8.13928827]
[1733635908748,10.0,238.13,238.11,8.13928827]
[1733635909048,10.0,238.13,238.12,8.13928827]
[1733635910621,10.0,238.13,238.12,12.34328827]
[1733635910919,10.0,238.13,238.12,8.13928827]
[1733635911923,10.0,238.13,238.11,20.0]
[1733635912127,10.0,238.13,238.12,28.13928827]
[1733635912440,10.0,238.13,238.12,52.16715227]
[1733635912751,0.4689515,238.16,238.15,20.0]
[1733635912953,0.4689515,238.16,238.15,28.13928827]
[1733635913331,0.12549,238.24,238.15,28.13928827]
[1733635913522,0.12549,238.24,238.17,8.13928827]
[1733635913721,0.12549,238.24,238.17,12.34328827]
[1733635913922,0.12549,238.24,238.19,8.13928827]
[1733635914350,1.6043515,238.25,238.2,8.13928827]
[1733635916134,1.6043515,238.25,238.21,8.13928827]
[1733635917637,1.6043515,238.25,238.12,20.0]
[1733635917638,1.6043515,238.25,238.22,8.13928827]
[1733635917822,1.6043515,238.25,238.13,20.0]
[1733635918028,9.74363977,238.25,238.18,8.13928827]
[1733635918563,8.26477827,238.24,238.09,6.1171]
[1733635918851,23.902374,238.24,238.17,8.13928827]
[1733635919152,32.04166227,238.24,238.17,8.13928827]
[1733635919461,8.13928827,238.23,238.09,6.1171]
[1733635919661,32.04166227,238.24,238.17,8.13928827]
[1733635919823,32.04166227,238.24,238.12,20.0]
[1733635919824,32.04166227,238.22,238.12,20.0]
[1733635920163,0.12549,238.2,238.13,8.13928827]
[1733635920358,0.12549,238.2,238.08,1.5402]
[1733635920855,0.12549,238.2,238.14,8.13928827]
[1733635921424,8.13928827,238.21,238.09,4.204]
[1733635921425,8.26477827,238.22,238.15,8.13928827]
[1733635921826,8.26477827,238.2,238.13,8.13928827]
[1733635922730,0.25098,238.23,238.1,8.13928827]
[1733635922731,8.26477827,238.18,238.1,8.13928827]
[1733635923028,8.13928827,238.17,238.09,8.13928827]
[1733635923230,8.26477827,238.18,238.1,8.13928827]
[1733635923531,1.77439,238.16,238.1,8.13928827]
[1733635924463,0.12549,238.14,238.02,20.0]
[1733635924669,0.12549,238.14,238.08,8.13928827]
[1733635924882,23.902374,238.12,238.05,8.13928827]
[1733635925074,0.12549,238.12,238.06,8.13928827]
[1733635925940,0.12549,238.12,238.07,8.13928827]
[1733635926578,0.12549,238.12,238.06,8.13928827]
[1733635928061,8.26477827,238.12,238.05,8.13928827]
[1733635928359,0.12549,238.1,238.05,8.13928827]
[1733635928981,24.027864,238.15,238.08,8.13928827]